Cogmind - Beta 16.1 @@@ ROGUE MODE // 2026.04.28 @ 08:28:42 Player: kareds Result: Destroyed by Y-64 Sentinel with KE Penetrator Performance ------------- Evolutions (5) 2500 Regions Visited (12) 2400 Robots Destroyed (104) 520 Value Destroyed (3983) 3983 Prototype IDs (32) 640 Alien Tech Used (0) 0 Bonus (1330) 1330 TOTAL SCORE: 11373 Bonus ------- High Alert Combat Kills 390 Follower Combat Kills 20 Aligned with FarCom 300 MAIN.C Attacked Warlord 500 Warlord Defense Kills 120 Cogmind --------- Core Integrity 0/1000 Matter 300/300 Energy 99/100 System Corruption 0% Temperature Cool (30) Movement Core (50) Location -4/Proximity Caves Parts ------- > --- POWER (2) -------- (None) > --- PROPULSION (5) --- (None) > --- UTILITY (7) ------ (None) > --- WEAPON (3) ------- (None) > --- INVENTORY (5) ---- Improved Energy Well (352) Enhanced Gauss Cannon RU-N14's Throwing Claymores v3 (4) Peak State ------------ > --- POWER ------------ Light Angular Momentum Engine Light Fission Core > --- PROPULSION ------- Antigrav System Antigrav System Antigrav System Nuclear Pulse Array > --- UTILITY ---------- Improved Coolant Injector Improved Energy Well Transmission Jammer Experimental Propulsion Shielding Experimental Propulsion Shielding Makeshift Light Armor Plating Makeshift Hacking Suite > --- WEAPON ----------- Backup Laser III Proton Cannon Compact Ion Cannon > --- INVENTORY -------- Remote Force Field Backup Laser III Enhanced Gauss Cannon RU-N14's Throwing Claymores v3 [Rating: 93] Favorites ----------- Power Micro Nuclear Core Engine Light Angular Momentum Engine Power Core Micro Nuclear Core Reactor Cold Fusion Reactor Propulsion Antigrav System Treads Armored Treads Leg Aluminum Leg Hover Unit Antigrav System Flight Unit Nuclear Pulse Array Utility Hacking Suite Device Improved Coolant Injector Storage Small Storage Unit Processor Advanced Targeting Computer Hackware Hacking Suite Protection Hardened Light Armor Plating Weapon AWS/Thermal Energy Gun AWS/Thermal Energy Cannon Compact Ion Cannon Ballistic Gun Assault Rifle Ballistic Cannon Enhanced Gauss Cannon Launcher Mini Grenade Launcher Special Weapon Mining Laser Impact Weapon Mace Slashing Weapon Axe Build | -11 -10 -10 -10 -9 -8 -7 -6 -5 -5 -5 -5 -4 ------- Run | Yrd Mat Min Exi Min Mat Fac Fac Fac Upp Upp War Pro Slots Evolved 10 | . . . . . 4 2 2 2 . . . . Power 1 | . . . . . . 1 . . . . . . Propulsion 3 | . . . . . 1 1 . 1 . . . . Utility 5 | . . . . . 2 . 2 1 . . . . Weapon 1 | . . . . . 1 . . . . . . . Parts Attached 104 | 7 3 5 1 3 10 33 14 12 3 1 9 3 Power 15 | 1 . 2 . . 2 4 3 1 1 . . 1 Engine 4 | 1 . . . . 1 . 1 . 1 . . . Core 10 | . . 2 . . 1 4 1 1 . . . 1 Reactor 1 | . . . . . . . 1 . . . . . Propulsion 25 | 2 . 2 . . 3 12 1 4 . . . 1 Treads 8 | 2 . . . . . 6 . . . . . . Leg 11 | . . 2 . . 3 6 . . . . . . Wheel . | . . . . . . . . . . . . . Hover 4 | . . . . . . . 1 3 . . . . Flight 2 | . . . . . . . . 1 . . . 1 Utility 31 | 2 . . . 1 4 7 6 6 . . 5 . Device 13 | 1 . . . . . 3 6 3 . . . . Storage 2 | 1 . . . . . . . 1 . . . . Processor 1 | . . . . . . 1 . . . . . . Hackware 5 | . . . . . 2 1 . 1 . . 1 . Protection 10 | . . . . 1 2 2 . 1 . . 4 . Artifact . | . . . . . . . . . . . . . Weapon 33 | 2 3 1 1 2 1 10 4 1 2 1 4 1 Energy Gun 11 | . . 1 1 . . 5 2 . . . 1 1 Energy Cannon 5 | . . . . . . 1 1 . 1 . 2 . Ballistic Gun 5 | 2 1 . . . . . 1 1 . . . . Ballistic Cannon 2 | . . . . . . 1 . . 1 . . . Launcher 6 | . 1 . . 2 1 2 . . . . . . Special Weapon 2 | . 1 . . . . . . . . . 1 . Impact Weapon 1 | . . . . . . . . . . 1 . . Slashing Weapon 1 | . . . . . . 1 . . . . . . Piercing Weapon . | . . . . . . . . . . . . . Special Melee Weapon . | . . . . . . . . . . . . . Unidentified Prototypes 9 | . . . . . . 2 2 1 . . 4 . Corrupted Parts 1 | . . . . . . 1 . . . . . . System Corruption 7 | . . . . . . 7 . . . . . . Parts Lost 50 | . 1 2 . . . 21 11 . . . . 15 Power 8 | . . . . . . 4 1 . . . . 3 Propulsion 15 | . . 1 . . . 5 4 . . . . 5 Utility 16 | . . . . . . 5 5 . . . . 6 Weapon 11 | . 1 1 . . . 7 1 . . . . 1 Highest Loss Streak 10 | . 1 2 . . . 8 7 . . . . 10 To Critical Strikes 1 | . . 1 . . . . . . . . . . Average Backups 4 | 4 7 7 7 6 5 4 2 4 4 5 5 3 Power . | . 1 1 1 1 1 . . . . . . . Propulsion . | 2 2 1 2 1 1 . . . . . . . Utility 1 | . 1 4 4 2 . 1 . 1 1 2 1 . Weapon 1 | . 2 . . . 1 1 1 2 2 3 3 2 Tool/Special . | . . . . . . . . . . . . . Unused Backups 14 | . 2 1 . 3 4 2 1 . . . 1 . Power 2 | . . 1 . . . . 1 . . . . . Propulsion 4 | . 2 . . 1 1 . . . . . . . Utility 5 | . . . . 2 1 1 . . . . 1 . Weapon 3 | . . . . . 2 1 . . . . . . Tool/Special . | . . . . . . . . . . . . . Average Slot Usage (%) 83 | . 100 99 92 93 89 88 79 42 77 76 80 45 Engine 2 | . 14 1 . . . . 1 . 1 5 5 1 Core 8 | . . 12 14 14 8 12 3 4 9 5 5 1 Treads 7 | . 28 18 . . . 6 15 . . . . . Leg 11 | . . 9 28 28 26 21 . . . . . . Hover 3 | . . . . . . . 3 3 17 17 17 12 Flight 1 | . . . . . . . . 4 5 5 4 3 Device 9 | . 14 14 14 6 . 1 22 11 17 17 11 5 Storage 4 | . 14 14 14 14 4 . . 4 5 5 5 1 Processor 1 | . . . . . . . 6 5 5 5 . . Hackware 9 | . . . . . 13 20 5 2 5 5 5 . Protection 5 | . . . . 7 17 6 . . 5 5 12 10 Energy Gun 5 | . . 11 14 3 8 8 2 . . . 8 2 Energy Cannon 1 | . . . . . . 1 4 . . . . 3 Ballistic Gun 2 | . 15 16 7 . . . 3 . . . . . Launcher 4 | . 7 . . 18 9 4 5 . . . . . Peak Build Rating 93 | 7 8 11 24 24 39 56 60 72 89 76 89 93 Average Rating 42 | 4 7 10 17 14 34 46 46 45 74 74 77 47 On Entrance 33 | . 7 8 11 24 13 39 17 5 72 74 74 86 Avg Prop Armor Cover (%) 8 | . . . . . . 17 16 10 3 4 4 15 Naked Turns 43 | . . . . . . . . . . . . 43 Heaviest Build 54 | 14 16 16 19 19 31 39 37 30 54 33 34 42 Greatest Support 60 | 40 40 40 20 20 35 60 60 33 33 33 33 33 Greatest Overweight (x) 3 | . . . . . . 1 2 1 1 . 1 3 Average Overweight (x) . | . . . . . . . . . . . . . Largest Inventory Capacity 8 | 8 8 8 8 8 8 5 5 5 5 5 5 5 Average Capacity 5 | 7 8 8 8 8 6 5 5 5 5 5 5 5 Most Carried 8 | 7 8 8 8 8 8 5 5 5 5 5 5 5 Average Carried 4 | 4 7 7 8 7 5 4 2 4 4 5 4 3 Final Capacity 8 | 8 8 8 8 8 5 5 5 5 5 5 5 5 Final Carried 8 | 7 8 8 8 8 5 1 5 3 5 5 5 3 Class Distribution -------------------- 46% | Mutant 21% | Hacker-Skirmisher 14% | Tank 7% | Hacker-Tank 4% | Hacker-Mutant Dominant Class ---------------- Mutant | -10/Materials Mutant | -10/Mines Mutant | -10/Exiles Mutant | -9/Mines Tank | -8/Materials Hacker-Skirmisher | -7/Factory Tank | -6/Factory Mutant | -5/Factory Mutant | -5/Upper Caves Mutant | -5/Upper Caves Mutant | -5/Warlord Mutant | -4/Proximity Caves Resources | -11 -10 -10 -10 -9 -8 -7 -6 -5 -5 -5 -5 -4 ----------- Run | Yrd Mat Min Exi Min Mat Fac Fac Fac Upp Upp War Pro Matter Collected 2639 | 228 47 216 . 88 292 908 286 118 324 17 100 15 Remotely . | . . . . . . . . . . . . . Salvage Created 3670 | 10 109 166 . . 464 2067 488 118 178 . 70 . Parts 207 | 2 15 10 . . 33 116 17 8 5 . 1 . Haulers Intercepted . | . . . . . . . . . . . . . Recyclers Shooed 2 | . . . . . . 2 . . . . . . Parts Field Recycled . | . . . . . . . . . . . . . Retrieved Matter . | . . . . . . . . . . . . . Parts Self-Destructed 10 | . . . . . . . . . 5 . . 5 Prevented 2 | . . . . . . . . . 1 . . 1 Parts Restored . | . . . . . . . . . . . . . Kills | -11 -10 -10 -10 -9 -8 -7 -6 -5 -5 -5 -5 -4 ------- Run | Yrd Mat Min Exi Min Mat Fac Fac Fac Upp Upp War Pro Combat Hostiles Destroyed 74 | . 4 4 . . 7 43 9 2 4 . 1 . Melee 4 | . . . . . . 4 . . . . . . Guns 43 | . 2 4 . . 5 27 3 1 . . 1 . Cannons 13 | . . . . . . 5 3 1 4 . . . AOE 12 | . 2 . . . 2 6 2 . . . . . Classes Destroyed 15 | 1 5 . . . 3 5 . . 1 . . . Worker 8 | . 1 . . . . 4 3 . . . . . Builder 10 | . 2 . . . 2 4 2 . . . . . Tunneler 1 | 1 . . . . . . . . . . . . Recycler 4 | . . . . . 1 3 . . . . . . Mechanic 2 | . . . . . . 2 . . . . . . Operator 1 | . 1 . . . . . . . . . . . Watcher 4 | . . . . . 2 2 . . . . . . Swarmer 12 | . 2 . . . . 10 . . . . . . Grunt 27 | . 2 4 . . 3 13 2 . 3 . . . Brawler 2 | . . . . . . . . . 1 . 1 . Duelist 3 | . . . . . . 3 . . . . . . Sentry 5 | . . . . . 4 . 1 . . . . . Specialist 5 | . . . . . . 3 2 . . . . . Hunter 4 | . . . . . . 2 2 . . . . . Programmer 16 | . . . . . . 12 2 2 . . . . Best Kill Streak 9 | 1 5 2 . . 3 9 7 2 2 . 1 . Combat Bots Only 8 | . 2 2 . . 2 8 3 2 2 . 1 . Max Kills in Single Turn 3 | 1 2 1 . . 2 2 3 1 1 . 1 . Gunslinging . | . . . . . . . . . . . . . Exploded 1 | . 1 . . . 1 1 1 . . . . . Melee 1 | . . . . . . 1 . . . . . . Uniques/NPCs Destroyed . | . . . . . . . . . . . . . Combat | -11 -10 -10 -10 -9 -8 -7 -6 -5 -5 -5 -5 -4 -------- Run | Yrd Mat Min Exi Min Mat Fac Fac Fac Upp Upp War Pro Hostile Shots Fired 821 | . 19 41 . 1 12 300 145 33 22 . . 248 Missed 280 | . 6 7 . . 4 86 58 14 4 . . 101 Hits 541 | . 13 34 . 1 8 214 87 19 18 . . 147 Melee 15 | . . . . . . 15 . . . . . . Projectile 526 | . 13 34 . 1 8 199 87 19 18 . . 147 Critical Strikes 19 | . . 1 . . . 9 2 3 2 . . 2 Damage Taken 8741 | . 143 388 . 16 238 3749 1572 218 200 . 14 2203 Core 2176 | . . 31 . . 90 519 534 51 28 . . 923 Absorbed by Shields 297 | . . . . . . . . 85 156 . . 56 Redirected to Shielding 327 | . . . . . 23 . . . . . 12 292 Ignored by Resistances 92 | . . . . . . . 44 48 . . . . Regen/Repaired (Parts) 138 | . . . . . 98 . . . . . 40 . Core Remaining (%) 66 | 100 . . . 87 83 25 37 . . . . . Volleys Fired 206 | 1 21 12 . . 13 98 27 12 12 . 8 2 Largest 3 | 2 2 2 . . 1 3 3 2 3 . 2 3 Hottest 212 | 40 100 100 . . 30 204 200 120 212 . 80 205 Shots Fired 432 | 2 29 22 . . 21 227 57 22 30 . 16 6 Gun 269 | 2 21 20 . . 8 165 23 12 . . 16 2 Cannon 101 | . . . . . . 34 23 10 30 . . 4 Launcher 58 | . 6 . . . 13 28 11 . . . . . Special 4 | . 2 2 . . . . . . . . . . Kinetic 65 | 2 21 15 . . . . 3 12 12 . . . Thermal 269 | . 2 7 . . 8 167 43 10 12 . 16 4 Explosive 58 | . 6 . . . 13 28 11 . . . . . Electromagnetic 40 | . . . . . . 32 . . 6 . . 2 Robot Hit Streak 35 | 1 5 5 . . 7 35 10 8 7 . 5 6 Robot Miss Streak 5 | . 4 5 . . 2 4 3 1 2 . 1 2 Penetration Max . | . . . . . . . . . . . . . Secondary Targets 3 | . . 2 . . . 1 . . . . . . Max Gunslinging Chain 1 | . . 1 . . . 1 . . . . . . Autonomous 96 | . . . . . 8 88 . . . . . . Shots Hit Robots 298 | 1 13 11 . . 12 169 40 17 21 . 12 2 Core Hits 191 | 1 15 8 . . 16 107 26 5 7 . 5 1 Critical Kills . | . . . . . . . . . . . . . Critical Parts Destroyed . | . . . . . . . . . . . . . Critical Strikes 5 | . . 1 . . . 3 . . 1 . . . Burn 3 | . . 1 . . . 2 . . . . . . Corrupt 1 | . . . . . . . . . 1 . . . Sever 1 | . . . . . . 1 . . . . . . Melee Attacks 26 | . . . . . . 26 . . . . . . Impact . | . . . . . . . . . . . . . Slashing 26 | . . . . . . 26 . . . . . . Piercing . | . . . . . . . . . . . . . Sneak Attacks 5 | . . . . . . 5 . . . . . . Combat Hostiles . | . . . . . . . . . . . . . Follow-up Attacks . | . . . . . . . . . . . . . Damage Inflicted 10793 | 10 450 142 . . 761 6693 1470 511 598 . 131 27 Guns 4495 | 10 124 142 . . 229 3079 514 239 . . 131 27 Cannons 2071 | . . . . . . 663 538 272 598 . . . Explosions 3425 | . 325 . . . 532 2150 418 . . . . . Melee 786 | . . . . . . 786 . . . . . . Ramming 16 | . 1 . . . . 15 . . . . . . Kinetic 845 | 10 124 93 . . . . 47 239 332 . . . Thermal 5174 | . . 49 . . 229 3299 1005 272 162 . 131 27 Explosive 3425 | . 325 . . . 532 2150 418 . . . . . Electromagnetic 547 | . . . . . . 443 . . 104 . . . Impact . | . . . . . . . . . . . . . Slashing 786 | . . . . . . 786 . . . . . . Piercing . | . . . . . . . . . . . . . Highest Corruption 23 | . . . . . . 23 . 2 2 2 2 . Average Corruption 4 | . . . . . . 5 . 1 2 2 2 . Corruption Purged . | . . . . . . . . . . . . . Corruption Blocked . | . . . . . . . . . . . . . Effects 76 | . . . . . . 55 . 6 12 3 . . Message Errors 15 | . . . . . . 11 . 2 2 . . . Matter Fused 19 | . . . . . . 13 . 2 3 1 . . Heat Flow Errors 4 | . . . . . . 4 . . . . . . Energy Discharges 13 | . . . . . . 9 . . 2 2 . . Parts Rejected 1 | . . . . . . 1 . . . . . . Parts Fused 1 | . . . . . . 1 . . . . . . Data Loss (minor) 18 | . . . . . . 11 . 2 5 . . . Misfires 1 | . . . . . . 1 . . . . . . Alerts 3 | . . . . . . 3 . . . . . . Misdirections 1 | . . . . . . 1 . . . . . . Overload Shots . | . . . . . . . . . . . . . Overflow Damage 199 | . 8 . . . 3 162 20 6 . . . . Projectiles 32 | . . . . . . 17 9 6 . . . . Explosions 78 | . 8 . . . 3 56 11 . . . . . Melee 89 | . . . . . . 89 . . . . . . Knockbacks 1 | . . . . . . . . . 1 . . . Impact . | . . . . . . . . . . . . . Kinetic 1 | . . . . . . . . . 1 . . . Secondary . | . . . . . . . . . . . . . Self-Inflicted Damage 194 | . . . . . 28 121 45 . . . . . Shots 8 | . . . . . 1 3 4 . . . . . Rammed 1 | . 1 . . . . . . . . . . . Targets Rammed 5 | . 1 . . . 1 3 . . . . . . Kicked 4 | . . . . . 1 3 . . . . . . Crushed . | . . . . . . . . . . . . . Highest Temperature 508 | . 20 207 . . 7 508 160 192 199 . 196 194 Average Temperature 90 | . 9 70 . . 4 108 41 127 97 . 69 105 Received Heat Transfer 1220 | . 48 108 . 9 54 747 135 . 80 . . 39 Effects 8 | . . . . . . 8 . . . . . . Shutdowns 3 | . . . . . . 3 . . . . . . Energy Bleed 3 | . . . . . . 3 . . . . . . Matter Decay 2 | . . . . . . 2 . . . . . . Siege Activations . | . . . . . . . . . . . . . Martial Activations . | . . . . . . . . . . . . . Shielding Activations . | . . . . . . . . . . . . . Robots Disrupted . | . . . . . . . . . . . . . Combat Hostiles . | . . . . . . . . . . . . . Robots Corrupted . | . . . . . . . . . . . . . Combat Hostiles . | . . . . . . . . . . . . . Parts Fried 2 | . . . . . . 2 . . . . . . Impact Corruptions . | . . . . . . . . . . . . . Robots Melted 2 | . . . . . . 1 1 . . . . . Combat Hostiles 2 | . . . . . . 1 1 . . . . . Parts Melted 12 | . . 1 . . . 7 3 1 . . . . Heat Transferred 7649 | . . 185 . . 296 4660 1579 296 222 . 337 74 Parts Sabotaged . | . . . . . . . . . . . . . Parts Stolen . | . . . . . . . . . . . . . Parts Stripped . | . . . . . . . . . . . . . Power Chain Reactions . | . . . . . . . . . . . . . Alert | -11 -10 -10 -10 -9 -8 -7 -6 -5 -5 -5 -5 -4 ------- Run | Yrd Mat Min Exi Min Mat Fac Fac Fac Upp Upp War Pro Maximum Alert Level 3 | . . . . . . 3 2 1 . . . . Low Security (%) 64 | 100 100 100 . 100 100 48 11 90 . . . . Level 1 15 | . . . . . . 9 66 9 . . . . Level 2 13 | . . . . . . 26 22 . . . . . Level 3 6 | . . . . . . 15 . . . . . . Level 4 . | . . . . . . . . . . . . . Level 5 . | . . . . . . . . . . . . . High Security . | . . . . . . . . . . . . . Max Security . | . . . . . . . . . . . . . Peak Influence 940 | 5 78 50 . . 96 940 469 229 . . . . Initial 455 | . . . . . . . 455 229 . . . . Average 197 | . 14 7 . . 28 329 315 131 . . . . Influence Increases 3404 | 5 161 112 . . 344 1503 618 79 195 . 125 262 Destroy 0b10 Robot/C 1500 | . 80 80 . . 140 860 180 40 80 . 20 20 Destroy 0b10 Robot/NC 155 | 5 20 . . . 25 75 30 . . . . . Destroy Leader 338 | . 20 20 . . 44 184 50 10 10 . . . Allied During Kill 2 | . . . . . . . . . . . . 2 Trap Triggered on 0b10 20 | . . 10 . . 10 . . . . . . . Successful Hack 57 | . 11 . . . 12 6 18 10 . . . . Disable Machine 255 | . . . . . 15 90 135 15 . . . . Destroy Structure 312 | . 30 2 . . 83 153 40 4 . . . . Partial Spotted 30 | . . . . . 15 . 15 . . . . . Lose Combat Pursuer 735 | . . . . . . 135 150 . 105 . 105 240 Influence Decreases 3284 | 5 161 112 . . 344 574 1078 518 219 6 48 219 Entered New Map 805 | . . . . . . . 474 240 12 2 . 77 Time Decay 2062 | 5 151 110 . . 344 364 494 278 207 4 48 57 Lost Part 397 | . 10 2 . . . 210 110 . . . . 65 Lost Ally 20 | . . . . . . . . . . . . 20 Squads Dispatched 32 | . 2 . . . 1 17 9 2 . . . 1 Investigation 7 | . 2 . . . 1 1 2 1 . . . . Extermination 9 | . . . . . . 5 3 1 . . . . Reinforcement 13 | . . . . . . 9 4 . . . . . Assault 3 | . . . . . . 2 . . . . . 1 Garrison . | . . . . . . . . . . . . . Intercept . | . . . . . . . . . . . . . Searches Triggered . | . . . . . . . . . . . . . Construction Impeded 4 | . . . . . . 3 1 . . . . . Haulers Reinforced . | . . . . . . . . . . . . . Active Scanning Responses . | . . . . . . . . . . . . . Cargo Convoy Interrupts 1 | . . . . . . 1 . . . . . . Stealth | -11 -10 -10 -10 -9 -8 -7 -6 -5 -5 -5 -5 -4 --------- Run | Yrd Mat Min Exi Min Mat Fac Fac Fac Upp Upp War Pro Distress Signals 3 | . . . . . 2 . 1 . . . . . Communications Jammed 2 | . . . . . . . . . . . 2 . Distress Signals 2 | . . . . . . . . . . . 2 . Times Spotted 186 | . 9 7 . 3 13 71 22 7 12 . 12 30 Peak Tracking Total 16 | . 3 3 . 3 3 13 8 5 7 . 4 16 Tactical Retreats 22 | . . . . . . 5 4 . 3 . 3 7 Traps | -11 -10 -10 -10 -9 -8 -7 -6 -5 -5 -5 -5 -4 ------- Run | Yrd Mat Min Exi Min Mat Fac Fac Fac Upp Upp War Pro Traps Triggered 3 | . 1 . . . . 1 1 . . . . . Indirectly . | . . . . . . . . . . . . . Trap Hack Attempts . | . . . . . . . . . . . . . Triggered . | . . . . . . . . . . . . . Disarmed . | . . . . . . . . . . . . . Reprogrammed . | . . . . . . . . . . . . . Reused 2 | . . 1 . . 1 . . . . . . . Traps Extracted . | . . . . . . . . . . . . . Installed 4 | . . 3 . . 1 . . . . . . . Triggered 2 | . . 1 . . 1 . . . . . . . Most Traps Carried 1 | . . 1 1 1 1 . . . . . . . Machines | -11 -10 -10 -10 -9 -8 -7 -6 -5 -5 -5 -5 -4 ---------- Run | Yrd Mat Min Exi Min Mat Fac Fac Fac Upp Upp War Pro Machines Disabled 17 | . . . . . 1 6 9 1 . . . . Max in Single Turn 3 | . . . . . 1 1 3 1 . . . . Machines Repaired . | . . . . . . . . . . . . . Machines Dismantled . | . . . . . . . . . . . . . Machines Sabotaged . | . . . . . . . . . . . . . Overloaded Fab Kills . | . . . . . . . . . . . . . Hacking | -11 -10 -10 -10 -9 -8 -7 -6 -5 -5 -5 -5 -4 --------- Run | Yrd Mat Min Exi Min Mat Fac Fac Fac Upp Upp War Pro Machines Accessed 28 | . 3 . 1 . 4 9 5 2 . . 4 . Terminals 12 | . 3 . . . 2 3 3 1 . . . . Fabricators 4 | . . . . . . 3 1 . . . . . Repair Stations 2 | . . . . . 1 . 1 . . . . . Recycling Units 1 | . . . . . . . . 1 . . . . Scanalyzers 3 | . . . . . 1 2 . . . . . . Garrison Access 1 | . . . . . . 1 . . . . . . Total Hacks 101 | . 11 . 1 . 16 42 16 5 . . 10 . Successful 57 | . 4 . 1 . 13 22 2 5 . . 10 . Failed 43 | . 7 . . . 3 19 14 . . . . . Catastrophic 10 | . 1 . . . . 4 5 . . . . . Database Lockouts 1 | . . . . . . 1 . . . . . . Manual 46 | . 10 . 1 . 5 19 9 2 . . . . Terminals 42 | . 11 . . . 6 14 8 3 . . . . Fabricators 12 | . . . . . . 9 3 . . . . . Repair Stations 10 | . . . . . 5 . 5 . . . . . Recycling Units 2 | . . . . . . . . 2 . . . . Scanalyzers 19 | . . . . . 5 14 . . . . . . Garrison Access 5 | . . . . . . 5 . . . . . . Terminal Hacks 22 | . 2 . 1 . 4 3 . 2 . . 10 . Record 9 | . . . . . . . . 1 . . 8 . Robot Analysis 5 | . 1 . . . 3 1 . . . . . . Open Door 2 | . . . . . . . . . . . 2 . Branch Access Points 1 | . . . . . . 1 . . . . . . Locate Traps 3 | . . . . . 1 1 . 1 . . . . Zone Layout 1 | . 1 . . . . . . . . . . . Proto ID Catalog 1 | . . . 1 . . . . . . . . . Fabricator Hacks 2 | . . . . . . 1 1 . . . . . Load Schematic 2 | . . . . . . 1 1 . . . . . Repair Station Hacks 4 | . . . . . 4 . . . . . . . Scan Component 2 | . . . . . 2 . . . . . . . Repair 2 | . . . . . 2 . . . . . . . Recycling Unit Hacks 2 | . . . . . . . . 2 . . . . Report Inventory 1 | . . . . . . . . 1 . . . . Retrieve Components 1 | . . . . . . . . 1 . . . . Scanalyzer 18 | . . . . . 5 13 . . . . . . Insert Component 6 | . . . . . . 6 . . . . . . Analyze 7 | . . . . . . 7 . . . . . . Retrieve Study 5 | . . . . . 5 . . . . . . . Garrison Access Hacks 1 | . . . . . . 1 . . . . . . Coupler Status 1 | . . . . . . 1 . . . . . . Unauthorized Hacks 7 | . 2 . . . . 3 1 1 . . . . Terminals 4 | . 2 . . . . 1 . 1 . . . . Assimilate 2 | . 1 . . . . . . 1 . . . . Operators 2 | . 1 . . . . 1 . . . . . . Fabricators 3 | . . . . . . 2 1 . . . . . Fabnet 3 | . . . . . . 2 1 . . . . . Repair Stations . | . . . . . . . . . . . . . Recycling Units . | . . . . . . . . . . . . . Scanalyzers . | . . . . . . . . . . . . . Garrison Access . | . . . . . . . . . . . . . Data Cores Recovered . | . . . . . . . . . . . . . Used . | . . . . . . . . . . . . . Hacking Detections 21 | . 3 . . . 4 8 5 1 . . . . Full Trace Events 7 | . 3 . . . 1 1 1 1 . . . . Feedback Events . | . . . . . . . . . . . . . Feedback Blocked . | . . . . . . . . . . . . . Robot Schematics Acquired . | . . . . . . . . . . . . . Robots Built . | . . . . . . . . . . . . . Authchips . | . . . . . . . . . . . . . Time . | . . . . . . . . . . . . . Total Robot Build Rating . | . . . . . . . . . . . . . Part Schematics Acquired 5 | . . . . . . 5 . . . . . . Parts Built . | . . . . . . . . . . . . . Authchips . | . . . . . . . . . . . . . Time . | . . . . . . . . . . . . . Total Part Build Rating . | . . . . . . . . . . . . . Part Studies Acquired 5 | . . . . . 5 . . . . . . . Parts Repaired 2 | . . . . . 2 . . . . . . . Time 70 | . . . . . 70 . . . . . . . Parts Recycled . | . . . . . . . . . . . . . Recycled Matter . | . . . . . . . . . . . . . Retrieved Matter . | . . . . . . . . . . . . . Retrieved Components 7 | . . . . . . . . 7 . . . . Parts Scanalyzed 5 | . . . . . . 5 . . . . . . Part Schematics Acquired 5 | . . . . . . 5 . . . . . . Parts Damaged . | . . . . . . . . . . . . . Bothacking | -11 -10 -10 -10 -9 -8 -7 -6 -5 -5 -5 -5 -4 ------------ Run | Yrd Mat Min Exi Min Mat Fac Fac Fac Upp Upp War Pro Used RIF Installer . | . . . . . . . . . . . . . Robots Hacked 5 | . . . . . . . 2 . . . 2 1 Non-combat . | . . . . . . . . . . . . . Combat 5 | . . . . . . . 2 . . . 2 1 Robot Hacks Applied . | . . . . . . . . . . . . . Relay Couplers Released . | . . . . . . . . . . . . . Fabnet Peak Effective % 6 | . . . . . . . 6 5 5 5 5 1 Autooverrided 5 | . . . . . . . 2 . . . 2 1 Robots Rewired . | . . . . . . . . . . . . . Allies Hacked . | . . . . . . . . . . . . . Hacks Repelled . | . . . . . . . . . . . . . Allies | -11 -10 -10 -10 -9 -8 -7 -6 -5 -5 -5 -5 -4 -------- Run | Yrd Mat Min Exi Min Mat Fac Fac Fac Upp Upp War Pro Total Allies 5 | . . . . . . . 2 . . . 2 1 Largest Group 2 | . . . . . . . 1 . . . 2 1 Highest-Rated Group 59 | . . . . . . . 37 . . . 59 30 Highest-Rated Ally 37 | . . . . . . . 37 . . . 30 30 Total Orders . | . . . . . . . . . . . . . Ally Attacks 7 | . . . . . . . . . . . 5 2 Total Damage 439 | . . . . . . . 239 . . . 70 130 Kills 2 | . . . . . . . 1 . . . . 1 Allies Corrupted . | . . . . . . . . . . . . . Allies Melted 1 | . . . . . . . . . . . 1 . Intel | -11 -10 -10 -10 -9 -8 -7 -6 -5 -5 -5 -5 -4 ------- Run | Yrd Mat Min Exi Min Mat Fac Fac Fac Upp Upp War Pro Active Infowar (turns) 3083 | 17 717 563 267 86 . . 15 350 218 222 584 44 Seismic 1650 | 17 717 563 267 86 . . . . . . . . Jamming 1418 | . . . . . . . . 350 218 222 584 44 ECM 15 | . . . . . . . 15 . . . . . Robot Analysis Total 5 | . 1 . . . 3 1 . . . . . . Derelict Logs Recovered 4 | . . 2 . . . . . . 1 1 . . Drone Launches . | . . . . . . . . . . . . . Drone Recoveries . | . . . . . . . . . . . . . Exploration | -11 -10 -10 -10 -9 -8 -7 -6 -5 -5 -5 -5 -4 ------------- Run | Yrd Mat Min Exi Min Mat Fac Fac Fac Upp Upp War Pro Turns Passed 10006 | 159 717 563 267 213 1203 3009 1315 602 898 222 584 254 Spaces Moved 7710 | 89 303 358 221 136 656 1788 838 470 1298 415 717 421 Core 632 | 2 . . . . . 123 360 35 . . . 112 Treads 1073 | 87 303 197 . . . 125 361 . . . . . Legs 2714 | . . 161 221 136 656 1540 . . . . . . Wheels . | . . . . . . . . . . . . . Hover 2746 | . . . . . . . 117 12 1298 415 717 187 Flight 545 | . . . . . . . . 423 . . . 122 Fastest Speed 35 | 50 160 120 120 120 95 50 50 40 52 52 52 35 Average Speed 92 | 157 160 142 120 120 111 103 139 41 53 52 64 50 Slowest Speed 250 | 160 160 160 120 120 120 175 250 120 112 52 112 200 Overloaded Moves . | . . . . . . . . . . . . . Propulsion Burnouts . | . . . . . . . . . . . . . Robots Hopped 4 | . . . . . . . . 4 . . . . Potential Cave-ins . | . . . . . . . . . . . . . Cave-ins Triggered . | . . . . . . . . . . . . . Exploration Rate (%) 44 | 5 44 64 60 18 50 24 16 5 97 56 86 52 Regions Visited 12 Branch Regions 7 Pre-discovered Areas 2 | . . 2 . . . . . . . . . . Known Exits Taken . | . . . . . . . . . . . . . Unknown Exits Taken 12 | 1 1 1 1 1 1 1 1 1 1 1 1 . Scrap Searched 7 | . . 1 . 1 . . . . 3 2 . . Spaces Dug 79 | . 2 2 . . 11 49 15 . . . . . Terrain Destroyed 358 | . 37 2 . . 87 190 29 5 7 . . 1 Melee . | . . . . . . . . . . . . . Projectile 32 | . 2 2 . . . 13 2 5 7 . . 1 AOE 326 | . 35 . . . 87 177 27 . . . . . Terrain Rammed . | . . . . . . . . . . . . . Walls Destroyed . | . . . . . . . . . . . . . Machines Disabled . | . . . . . . . . . . . . . Actions | -11 -10 -10 -10 -9 -8 -7 -6 -5 -5 -5 -5 -4 --------- Run | Yrd Mat Min Exi Min Mat Fac Fac Fac Upp Upp War Pro Total 10225 | 103 503 386 223 188 1116 2752 924 850 1481 420 821 458 Wait 1996 | . 160 2 . 38 405 763 31 342 154 4 73 24 Move 7690 | 88 302 357 220 135 655 1787 837 461 1297 414 716 421 Hop 4 | . . . . . . . . 4 . . . . Pick Up 54 | 7 7 3 . 5 12 9 5 3 2 . 1 . Fast Attach 68 | 7 1 . 1 2 4 19 10 11 1 1 9 2 Attach 42 | . 2 2 . . 5 13 2 8 6 . 1 3 Detach 17 | . . . . . . 3 1 5 6 . 1 1 Swap 38 | . 4 5 . 1 5 17 4 . 1 . . 1 Drop 75 | . 5 2 2 7 15 14 7 4 2 1 12 4 Fire 206 | 1 21 12 . . 13 98 27 12 12 . 8 2 Melee 26 | . . . . . . 26 . . . . . . Ram . | . . . . . . . . . . . . . Kick 4 | . . . . . 1 3 . . . . . . Crush 1 | . 1 . . . . . . . . . . . Escape Stasis . | . . . . . . . . . . . . . Rewire . | . . . . . . . . . . . . . Trap 4 | . . 3 . . 1 . . . . . . . Miscellaneous . | . . . . . . . . . . . . . Route ------- -11/Scrapyard -10/Materials (discovered 2 exits: [*Mat] / [*Min]) -10/Mines -10/Exiles -9/Mines -8/Materials -7/Factory (discovered 3 exits: *Fac / Low x2) -6/Factory -5/Factory -5/Upper Caves -5/Upper Caves (discovered 2 exits: [*Fac] / *War) -5/Warlord -4/Proximity Caves History --------- Turn | Location | Event 10 | -11/Scrapyard | Discovered new exit (range 16) 160 | -11/Scrapyard | Entered Materials 304 | -10/Materials | Build established: Mutant 336 | -10/Materials | Discovered new exit (range 12) 838 | -10/Materials | Discovered new exit (range 14) 877 | -10/Materials | Entered Mines 1208 | -10/Mines | Found a hidden stash of uninstalled traps 1326 | -10/Mines | Learned location of Zion (-7) 1434 | -10/Mines | Deemed a non-threat by the Exiles lab entrance 1434 | -10/Mines | Discovered new exit (range 5) 1440 | -10/Mines | Entered Exiles 1469 | -10/Exiles | Met 8R-AWN 1488 | -10/Exiles | Met EX-HEX 1522 | -10/Exiles | Met EX-BIN 1536 | -10/Exiles | Aligned with FarCom system 1538 | -10/Exiles | Given EX-Vault access code 1565 | -10/Exiles | Opened EX-Vault 1575 | -10/Exiles | Found AWS/Thermal 1605 | -10/Exiles | Warned to stay clear of 0b10 Research branches 1637 | -10/Exiles | Met EX-DEC 1693 | -10/Exiles | Discovered new exit (range 12) 1707 | -10/Exiles | Left Exiles lab with AWS/Thermal 1707 | -10/Exiles | Entered Mines 1736 | -9/Mines | YI-UF0 nonchalantly dropped a Grenade Launcher on the ground 1779 | -9/Mines | Found DCF Scrap (13 items) 1899 | -9/Mines | Discovered new exit (range 11) 1920 | -9/Mines | Entered Materials 1920 | -8/Materials | Evolved 4 slots: Propulsion x1, Utility x2, Weapon x1 2229 | -8/Materials | Build established: Tank 2715 | -8/Materials | Repaired Lgt. Nuclear Core 2748 | -8/Materials | Repaired Hrd. Light Armor Plating 2950 | -8/Materials | Discovered new exit (range 12) 3050 | -8/Materials | Build established: Hacker-Tank 3123 | -8/Materials | Entered Factory 3123 | -7/Factory | Evolved 2 slots: Power x1, Propulsion x1 3589 | -7/Factory | Central database locked down 3613 | -7/Factory | Build established: Hacker-Skirmisher 3622 | -7/Factory | Identified exit to Lower Caves 4584 | -7/Factory | Cargo convoy interrupted 4625 | -7/Factory | Destroyed 8 combat bots 5069 | -7/Factory | AWS/Thermal suddenly broke down 5523 | -7/Factory | First assault squad dispatched 5652 | -7/Factory | System corruption reached 10% 5749 | -7/Factory | Lost 8 parts (1p3n1u3w) 5780 | -7/Factory | Core integrity fell below 50% 6012 | -7/Factory | Build established: Hacker-Mutant 6122 | -7/Factory | Discovered new exit (range 15) 6132 | -7/Factory | Entered another Factory area 6132 | -6/Factory | Evolved 2 slots: Utility x2 6521 | -6/Factory | Build established: Tank 7314 | -6/Factory | Lost 7 parts (1p3n2u1w) 7404 | -6/Factory | Core integrity fell below 50% 7428 | -6/Factory | Discovered new exit (range 15) 7447 | -6/Factory | Entered another Factory area 7447 | -5/Factory | Evolved 2 slots: Propulsion x1, Utility x1 7601 | -5/Factory | Build established: Mutant 7811 | -5/Factory | Discovered new exit (range 9) 8049 | -5/Factory | Entered Upper Caves 8329 | -5/Upper Caves | Encountered a Warlord checkpoint 8465 | -5/Upper Caves | Attracted the attention of an 0b10 base 8941 | -5/Upper Caves | Discovered new exit (range 11) 8947 | -5/Upper Caves | Entered another Upper Caves area 8981 | -5/Upper Caves | Discovered new exit (range 12) 8982 | -5/Upper Caves | Learned Factory stockpile data 8987 | -5/Upper Caves | Encountered a Warlord checkpoint 9113 | -5/Upper Caves | Discovered new exit (range 12) 9169 | -5/Upper Caves | Entered Warlord 9190 | -5/Warlord | System corruption cleaned by Quarantine Array 9285 | -5/Warlord | Warlord's base attacked by MAIN.C 9360 | -5/Warlord | Found Prototype Energy Cannon 9360 | -5/Warlord | Identified Vortex Cannon 9363 | -5/Warlord | Found Prototype Energy Gun 9363 | -5/Warlord | Identified Vortex Rifle 9526 | -5/Warlord | Found Prototype Special Weapon 9526 | -5/Warlord | Identified RU-N14's Throwing Claymores v3 9615 | -5/Warlord | Opened side exit 9635 | -5/Warlord | Warlord forces counterattacked 9750 | -5/Warlord | Discovered new exit (range 9) 9753 | -5/Warlord | Entered Proximity Caves 9782 | -4/Proximity Caves | Lost 3 allies 9828 | -4/Proximity Caves | Attracted the attention of an 0b10 checkpoint 9851 | -4/Proximity Caves | Lost 5 parts (2p3u) 9901 | -4/Proximity Caves | Attracted the attention of an 0b10 outpost 9929 | -4/Proximity Caves | Core integrity fell below 50% 9952 | -4/Proximity Caves | Core integrity fell below 20% 10005 | -4/Proximity Caves | Lost 10 parts (1p5n3u1w) 10007 | -4/Proximity Caves | Destroyed by Y-64 Sentinel with KE Penetrator Last Messages --------------- 09935_ S-27 Virus destroyed. 09936_ Antigrav System destroyed. 09939_ Backup Laser III destroyed. 09939_ S-27 Virus destroyed. 09943_ VTOL Module fries itself beyond repair. 09943_ Slug penetrates Wall. 09943_ Drone sends a signal. 09945_ Unknown Ballistic Gun fries itself beyond repair. 09946_ VTOL Module fries itself beyond repair. 09946_ Unknown Ballistic Gun fries itself beyond repair. 09948_ Acquired Lgt. Nuclear Core. 09951_ Lgt. Nuclear Core destroyed. 09952_ Acquired VTOL Module. 09953_ Acquired 15 matter. 09962_ Penetrated by Slug. 09962_ Slug penetrates Wall. 09974_ VTOL Module destroyed. 10007_ Penetrated by Slug. Map ----- +----------------------------------------------------+ | ?????????????????????????????????????????????????? | | ?????????????????????????????????????????????????? | | ?????????????????????????????????????????????????? | | ?????????????????????????????????????????????????? | | ?????????????????????????????????????????????????? | | ?????????????????????????????????????????????????? | | ??????????????????????????#####??????????????????? | | ?????????????????????????## ##???#########?????? | | ?????????????????????????# #???# ## #?????? | | ?????????????????????????# ##### #?????# | | ?????????????????????????# #?????# | | ?????????????????????????### & ## ##???? | | ???????????????????????????# #### ### ####? | | ? ????????????????????????## #### ## #?# | | #??????????????????????## ## ### | | ##??? ???????????????# #### | | #?## ???????????????# ##### | | ### ??????????##??## #### ###### | | ## ?????????## #?## #####????# | | ## ??????????# ## ##?????# | | ?????????# #?????# | | ??????????# ##????## | | ??????????## ###???# | | "???????????### #???## | | ## ######???????## ## #???### | | #?# ## #?????### @ #?# #????## | | ##?# #???### #?## #?????# | | #??# #??## #???# ?????## | | #?## ##### ##????? ???????# | | ### ##???????????????? | | ## [] ??????????????? | | ## ######### [?????????????? | | #####???????# Yg%!????????????? | | ##?????????## b%=???????????? | | #### #########??## ???????????? | | #??## ##??## #??# ??????? | | ????## ##### ## ????? | | ?????## ### ## ??? | | ??????## ###### ### ? ? # | | ???????####????## ##?# ????????????# | | ????????????????## #??? ?????????????## | | ?????????????????# #???????????????????????# | | ?????????????????# ##???????????????????????# | | ?????????????????## ##???????????????????????# | | ???????????????????##????????????????????????# | | ?????????????????????????????????????????????# | | ?????????????????????????????????????????????# | | ???????????????????????????????????????????? ## | | ??????????????????????????????????????????? ##?? | | ??????????????????????????????????????????# ???? | +----------------------------------------------------+ Best States ------------- Heat Dissipation 70 Coolant Potential 80 Energy Generation 31 Energy Capacity 610 Matter Stores 300 Matter Capacity 300 Sight Range 16 Terrain Scan Density 10 ECM Strength 2 Jamming Range 12 Armor Coverage 375 Resistance: TH 20 Resistance: EM 15 Propulsion Shielding 90 Phase Shifting 5 Evasion (%) 63 Targeting Accuracy 8 Recoil Reduction 3 Particle Charging 15 Offensive Hacking 20 Defensive Hacking 10 Item Schematics ----------------- Plasma Cannon | -7/Factory | Scanalyzed Prc. Shock Rifle | -7/Factory | Scanalyzed Adv. Visual Processing Unit | -7/Factory | Scanalyzed Mni. Assault Cannon | -7/Factory | Scanalyzed Imp. Light Armor Plating | -7/Factory | Scanalyzed Robot Schematics ------------------ None Fabricated ------------ Nothing Repaired ---------- Lgt. Nuclear Core | 52% | -8/Materials Hrd. Light Armor Plating | 58% | -8/Materials Studied --------- Imp. Aluminum Leg | -8/Materials | Hacked Aluminum Leg | -8/Materials | Hacked Hvy. Particle Cannon | -8/Materials | Hacked VSS Leg | -8/Materials | Hacked Minigun | -8/Materials | Hacked Alien Tech Used ----------------- None Achievements -------------- Charge!!! Drive-By Challenges ------------ None Game ------ Seed VariableVampiricJoltstriker Manual? 0 Play Time 02:19:22 Cumulative 24.0 hours Start 2026.04.27 @ 13:13:13 End 2026.04.28 @ 08:28:42 Sessions 5 Manual Loads 0 Difficulty Rogue Special Mode None Game No. 28 Rogue 12 Adventurer 16 Explorer 0 Win Type - Total 0 Types 0/0/0/0/0/0/0/0/0/0 Lore% 33 Gallery% 29 Achievement% 24 Wizard Run 0 Options --------- Layout 1 ASCII 0 Keyboard 0 Movement Mouse Keybinds 0 Fullscreen 1 Font 24/Smallcaps Map View 50x35 Zoom Use 0% Tactical HUD 1 Map Filters NONE Filters NONE Steam 1 RUN: fd609643-cd81-48e2-9d29-4268b271ff30